Cogmind - Beta 16 @@@ ROGUE MODE // 2025.11.12 @ 21:15:35 Player: RHAHI Result: Destroyed by JO-LHF(j) with Overtuned Pulse Rifle Performance ------------- Evolutions (0) 0 Regions Visited (4) 800 Robots Destroyed (28) 140 Value Destroyed (723) 723 Prototype IDs (9) 180 Alien Tech Used (0) 0 Bonus (800) 800 TOTAL SCORE: 2643 Bonus ------- Registered with UFD 300 Met Optimus in HQ 500 Cogmind --------- Core Integrity 0/250 Matter 300/300 Energy 286/290 System Corruption 0% Temperature Cool (39) Movement Treading (240) Ox1 Location -9/Scraptown Parts ------- > --- POWER (1) -------- Improved Deuterium Engine > --- PROPULSION (2) --- Light Treads Improved Treads > --- UTILITY (2) ------ High-capacity Storage Unit Hardened Light Armor Plating > --- WEAPON (2) ------- LU-1G1's Laser Shovel > --- INVENTORY (20) --- Spectral Analyzer Advanced Targeting Computer Expert System Weapon Cycler Transmission Jammer Advanced ECM Suite Light Armor Plating Improved Hacking Suite A0-MCA's Component Scanner Junk Cannon (8) Peak State ------------ > --- POWER ------------ Improved Ion Engine > --- PROPULSION ------- Medium Treads Improved Medium Treads > --- UTILITY ---------- Scrap Suit > --- WEAPON ----------- Assault Rifle > --- INVENTORY -------- Airjet Airjet Improved Cooling System Heavy Assault Rifle [Rating: 21] Favorites ----------- Power Improved Ion Engine Engine Improved Ion Engine Power Core Light Nuclear Core Propulsion Light Treads Treads Light Treads Wheel Compact Wheel Hover Unit Airjet Utility High-capacity Storage Unit Device Sensor Array Storage High-capacity Storage Unit Processor Targeting Computer Protection Light Armor Plating Weapon Assault Rifle Energy Gun Overtuned Pulse Rifle Ballistic Gun Assault Rifle Launcher Grenade Launcher Special Weapon Junk Cannon Slashing Weapon Mining Claw Special Melee Weapon Datajack Build | -11 -10 -10 -10 -9 ------- Run | Yrd Mat Min Sub Scr Slots Evolved . | . . . . . Power . | . . . . . Propulsion . | . . . . . Utility . | . . . . . Weapon . | . . . . . Parts Attached 48 | 7 12 7 7 15 Power 6 | 1 2 1 1 1 Engine 5 | 1 1 1 1 1 Core 1 | . 1 . . . Reactor . | . . . . . Propulsion 16 | 2 2 4 2 6 Treads 11 | . 2 3 2 4 Leg . | . . . . . Wheel 3 | 2 . 1 . . Hover 2 | . . . . 2 Flight . | . . . . . Utility 11 | 2 2 . 2 5 Device 3 | 1 . . 1 1 Storage 3 | 1 1 . . 1 Processor 1 | . 1 . . . Hackware . | . . . . . Protection 4 | . . . 1 3 Artifact . | . . . . . Weapon 15 | 2 6 2 2 3 Energy Gun 1 | . . . . 1 Energy Cannon . | . . . . . Ballistic Gun 8 | 2 2 2 2 . Ballistic Cannon . | . . . . . Launcher 1 | . 1 . . . Special Weapon 3 | . 1 . . 2 Impact Weapon . | . . . . . Slashing Weapon 1 | . 1 . . . Piercing Weapon . | . . . . . Special Melee Weapon 1 | . 1 . . . Unidentified Prototypes 2 | . . . . 2 Parts Lost 10 | . 2 1 7 . Power 3 | . 2 . 1 . Propulsion 2 | . . 1 1 . Utility 1 | . . . 1 . Weapon 4 | . . . 4 . Highest Loss Streak 6 | . 1 1 6 . To Critical Strikes . | . . . . . Average Backups 12 | 3 13 19 18 10 Power 1 | . . 1 2 1 Propulsion 2 | 2 5 4 4 2 Utility 5 | . 3 7 6 5 Weapon 2 | . 3 5 4 1 Tool/Special . | . . . . . Unused Backups 46 | . 2 2 . 42 Power 4 | . . 1 . 3 Propulsion 7 | . 2 . . 5 Utility 27 | . . 1 . 26 Weapon 6 | . . . . 6 Tool/Special 2 | . . . . 2 Average Slot Usage (%) 88 | . 99 100 99 83 Engine 11 | . 11 14 14 11 Treads 23 | . 27 24 28 22 Hover 3 | . . . . 5 Device 4 | . 3 . 1 5 Storage 11 | . 14 14 14 10 Processor 4 | . 10 14 11 . Protection 2 | . . . . 3 Ballistic Gun 22 | . 23 26 27 21 Special Weapon 1 | . . 1 . 1 Peak Build Rating 21 | 7 10 11 12 21 Average Rating 11 | 5 8 9 11 13 On Entrance 7 | . 7 9 11 12 Avg Prop Armor Cover (%) 12 | . . 12 . . Naked Turns . | . . . . . Heaviest Build 58 | 11 50 52 53 58 Greatest Support 58 | 20 40 40 40 58 Greatest Overweight (x) 3 | . 1 3 1 1 Average Overweight (x) . | . . 1 1 . Largest Inventory Capacity 20 | 8 20 20 20 20 Average Capacity 17 | 7 19 20 20 16 Most Carried 20 | 5 19 20 20 20 Average Carried 13 | 3 13 19 19 11 Final Capacity 20 | 8 20 20 20 20 Final Carried 20 | 5 19 20 18 11 Scrap Suit Usage (%) 1 | . . . . 1 Parts Cannibalized 2 | . . . . 2 Class Distribution -------------------- 95% | Mutant 4% | Scrapper Dominant Class ---------------- Mutant | -10/Materials Mutant | -10/Mines Mutant | -10/Subcaves Mutant | -9/Scraptown Resources | -11 -10 -10 -10 -9 ----------- Run | Yrd Mat Min Sub Scr Matter Collected 1653 | 245 498 316 120 474 Remotely . | . . . . . Salvage Created 846 | 23 537 100 186 . Parts 52 | 3 35 1 13 . Haulers Intercepted 2 | . 2 . . . Recyclers Shooed 1 | . 1 . . . Parts Field Recycled . | . . . . . Retrieved Matter . | . . . . . Parts Self-Destructed 18 | . . . 18 . Prevented . | . . . . . Parts Restored . | . . . . . Kills | -11 -10 -10 -10 -9 ------- Run | Yrd Mat Min Sub Scr Combat Hostiles Destroyed 20 | . 12 2 6 . Melee 1 | . 1 . . . Guns 15 | . 7 2 6 . AOE 4 | . 4 . . . Classes Destroyed 8 | 1 6 . 1 . Worker 1 | . 1 . . . Tunneler 1 | 1 . . . . Hauler 2 | . 2 . . . Operator 1 | . 1 . . . Watcher 3 | . 3 . . . Swarmer 5 | . 3 . 2 . Grunt 13 | . 9 2 2 . Subdweller 2 | . . . 2 . Best Kill Streak 7 | 1 7 2 2 . Combat Bots Only 6 | . 6 2 2 . Max Kills in Single Turn 3 | 1 3 1 2 . Gunslinging 1 | . . . 1 . Exploded 2 | . 2 . . . Melee 1 | . 1 . . . Uniques/NPCs Destroyed . | . . . . . Combat | -11 -10 -10 -10 -9 -------- Run | Yrd Mat Min Sub Scr Hostile Shots Fired 232 | . 71 22 128 11 Missed 70 | . 20 5 39 6 Hits 162 | . 51 17 89 5 Projectile 162 | . 51 17 89 5 Critical Strikes 3 | . 1 1 . 1 Damage Taken 1999 | . 585 239 1086 89 Core 271 | . 107 11 129 24 Absorbed by Shields . | . . . . . Regen/Repaired (Parts) 51 | . 37 . . 14 Core Remaining (%) 100 | 100 . . . . Volleys Fired 103 | 2 53 13 29 6 Largest 2 | 2 2 2 2 1 Hottest 123 | 40 100 40 123 80 Shots Fired 189 | 4 98 26 56 5 Gun 174 | 4 90 26 53 1 Cannon . | . . . . . Launcher 5 | . 5 . . . Special 10 | . 3 . 3 4 Kinetic 173 | 4 90 26 53 . Thermal 7 | . 3 . 3 1 Explosive 5 | . 5 . . . Electromagnetic . | . . . . . Impact 4 | . . . . 4 Robot Hit Streak 21 | 4 11 11 21 . Robot Miss Streak 4 | . 4 4 4 . Penetration Max . | . . . . . Secondary Targets 3 | . 2 . 1 . Max Gunslinging Chain 1 | . 1 . 1 . Shots Hit Robots 123 | 4 59 19 41 . Core Hits 55 | 2 36 5 12 . Critical Kills . | . . . . . Critical Parts Destroyed 1 | . 1 . . . Critical Strikes 1 | . 1 . . . Destroy 1 | . 1 . . . Melee Attacks 15 | . 15 . . . Impact . | . . . . . Slashing 15 | . 15 . . . Piercing . | . . . . . Sneak Attacks . | . . . . . Combat Hostiles . | . . . . . Follow-up Attacks . | . . . . . Damage Inflicted 1749 | 32 964 239 514 . Guns 1382 | 32 599 237 514 . Cannons . | . . . . . Explosions 353 | . 353 . . . Melee . | . . . . . Ramming 14 | . 12 2 . . Kinetic 1382 | 32 599 237 514 . Thermal . | . . . . . Explosive 353 | . 353 . . . Electromagnetic . | . . . . . Impact . | . . . . . Slashing . | . . . . . Piercing . | . . . . . Highest Corruption . | . . . . . Average Corruption . | . . . . . Corruption Purged . | . . . . . Corruption Blocked . | . . . . . Overload Shots . | . . . . . Overflow Damage . | . . . . . Projectiles . | . . . . . Explosions . | . . . . . Melee . | . . . . . Knockbacks . | . . . . . Impact . | . . . . . Kinetic . | . . . . . Secondary . | . . . . . Self-Inflicted Damage 44 | . 44 . . . Shots 3 | . 3 . . . Rammed 3 | . 2 1 . . Targets Rammed 3 | . 2 1 . . Kicked . | . . . . . Crushed . | . . . . . Highest Temperature 93 | . 93 20 . 65 Average Temperature 19 | . 20 5 . 31 Received Heat Transfer 619 | . 171 147 228 73 Siege Activations . | . . . . . Martial Activations . | . . . . . Shielding Activations . | . . . . . Robots Disrupted . | . . . . . Combat Hostiles . | . . . . . Robots Corrupted . | . . . . . Combat Hostiles . | . . . . . Parts Fried . | . . . . . Impact Corruptions . | . . . . . Robots Melted . | . . . . . Combat Hostiles . | . . . . . Parts Melted . | . . . . . Heat Transferred . | . . . . . Parts Sabotaged . | . . . . . Parts Stolen . | . . . . . Parts Stripped . | . . . . . Power Chain Reactions . | . . . . . Alert | -11 -10 -10 -10 -9 ------- Run | Yrd Mat Min Sub Scr Maximum Alert Level . | . . . . . Low Security (%) 100 | 100 100 100 . . Level 1 . | . . . . . Level 2 . | . . . . . Level 3 . | . . . . . Level 4 . | . . . . . Level 5 . | . . . . . High Security . | . . . . . Max Security . | . . . . . Peak Influence 174 | 5 174 40 . . Initial 16 | . . 16 . . Average 39 | . 66 1 . . Influence Increases 731 | 5 526 50 150 . Destroy 0b10 Robot/C 360 | . 240 40 80 . Destroy 0b10 Robot/NC 40 | 5 35 . . . Destroy Leader 80 | . 60 10 10 . Successful Hack 34 | . 34 . . . Select Force Hacks 60 | . 60 . . . Disable Machine 15 | . 15 . . . Destroy Structure 37 | . 37 . . . Lose Combat Pursuer 105 | . 45 . 60 . Influence Decreases 731 | 5 482 94 150 . Entered New Map 28 | . . 28 . . Time Decay 585 | 5 384 56 140 . Lost Part 40 | . 20 10 10 . Purge Threat 78 | . 78 . . . Squads Dispatched 3 | . 3 . . . Investigation 2 | . 2 . . . Extermination . | . . . . . Reinforcement 1 | . 1 . . . Assault . | . . . . . Garrison . | . . . . . Intercept . | . . . . . Searches Triggered . | . . . . . Construction Impeded . | . . . . . Haulers Reinforced . | . . . . . Active Scanning Responses . | . . . . . Cargo Convoy Interrupts . | . . . . . Stealth | -11 -10 -10 -10 -9 --------- Run | Yrd Mat Min Sub Scr Distress Signals 1 | . 1 . . . Communications Jammed . | . . . . . Distress Signals . | . . . . . Times Spotted 54 | . 26 3 8 17 Peak Tracking Total 7 | . 7 2 6 4 Tactical Retreats 3 | . 1 . 2 . Traps | -11 -10 -10 -10 -9 ------- Run | Yrd Mat Min Sub Scr Traps Triggered . | . . . . . Indirectly . | . . . . . Trap Hack Attempts 37 | . 37 . . . Triggered . | . . . . . Disarmed 3 | . 3 . . . Reprogrammed . | . . . . . Reused . | . . . . . Traps Extracted . | . . . . . Installed . | . . . . . Triggered . | . . . . . Machines | -11 -10 -10 -10 -9 ---------- Run | Yrd Mat Min Sub Scr Machines Disabled 6 | . 1 . . 5 Max in Single Turn 1 | . 1 . . 1 Machines Repaired . | . . . . . Machines Dismantled . | . . . . . Machines Sabotaged . | . . . . . Overloaded Fab Kills . | . . . . . Hacking | -11 -10 -10 -10 -9 --------- Run | Yrd Mat Min Sub Scr Machines Accessed 19 | . 11 . . 8 Terminals 8 | . 8 . . . Fabricators . | . . . . . Repair Stations 1 | . 1 . . . Recycling Units 2 | . 2 . . . Scanalyzers . | . . . . . Garrison Access . | . . . . . Total Hacks 101 | . 43 . . 58 Successful 83 | . 25 . . 58 Failed 17 | . 17 . . . Catastrophic . | . . . . . Database Lockouts 1 | . 1 . . . Manual 33 | . 32 . . 1 Terminals 34 | . 34 . . . Fabricators . | . . . . . Repair Stations 2 | . 2 . . . Recycling Units 7 | . 7 . . . Scanalyzers . | . . . . . Garrison Access . | . . . . . Terminal Hacks 66 | . 8 . . 58 Record 58 | . . . . 58 Robot Analysis 2 | . 2 . . . Unreport Threat 1 | . 1 . . . Locate Traps 3 | . 3 . . . Zone Layout 2 | . 2 . . . Fabricator Hacks . | . . . . . Repair Station Hacks 2 | . 2 . . . Scan Component 1 | . 1 . . . Repair 1 | . 1 . . . Recycling Unit Hacks . | . . . . . Scanalyzer . | . . . . . Garrison Access Hacks . | . . . . . Unauthorized Hacks 15 | . 15 . . . Terminals 13 | . 13 . . . Track 5 | . 5 . . . Botnet 2 | . 2 . . . Skim 6 | . 6 . . . Fabricators . | . . . . . Repair Stations . | . . . . . Recycling Units 2 | . 2 . . . Tunnel 2 | . 2 . . . Scanalyzers . | . . . . . Garrison Access . | . . . . . Data Cores Recovered . | . . . . . Used . | . . . . . Hacking Detections 10 | . 10 . . . Full Trace Events . | . . . . . Feedback Events . | . . . . . Feedback Blocked . | . . . . . Robot Schematics Acquired . | . . . . . Robots Built . | . . . . . Authchips . | . . . . . Time . | . . . . . Total Robot Build Rating . | . . . . . Part Schematics Acquired . | . . . . . Parts Built . | . . . . . Authchips . | . . . . . Time . | . . . . . Total Part Build Rating . | . . . . . Part Studies Acquired . | . . . . . Parts Repaired 1 | . 1 . . . Time 26 | . 26 . . . Parts Recycled . | . . . . . Recycled Matter . | . . . . . Retrieved Matter . | . . . . . Retrieved Components . | . . . . . Parts Scanalyzed . | . . . . . Part Schematics Acquired . | . . . . . Parts Damaged . | . . . . . Bothacking | -11 -10 -10 -10 -9 ------------ Run | Yrd Mat Min Sub Scr Used RIF Installer . | . . . . . Robots Hacked . | . . . . . Non-combat . | . . . . . Combat . | . . . . . Robot Hacks Applied . | . . . . . Relay Couplers Released . | . . . . . Fabnet Peak Effective % . | . . . . . Robots Rewired . | . . . . . Allies Hacked . | . . . . . Hacks Repelled . | . . . . . Allies | -11 -10 -10 -10 -9 -------- Run | Yrd Mat Min Sub Scr Total Allies . | . . . . . Largest Group . | . . . . . Highest-Rated Group . | . . . . . Highest-Rated Ally . | . . . . . Total Orders . | . . . . . Ally Attacks . | . . . . . Total Damage . | . . . . . Kills . | . . . . . Allies Corrupted . | . . . . . Allies Melted 5 | . . . . 5 Intel | -11 -10 -10 -10 -9 ------- Run | Yrd Mat Min Sub Scr Active Infowar (turns) 3618 | 12 579 . 106 2921 Sensors 3027 | . . . 106 2921 Seismic 591 | 12 579 . . . Robot Analysis Total 2 | . 2 . . . Derelict Logs Recovered 5 | . . 2 1 2 Drone Launches . | . . . . . Drone Recoveries . | . . . . . Exploration | -11 -10 -10 -10 -9 ------------- Run | Yrd Mat Min Sub Scr Turns Passed 14476 | 65 2497 1746 827 9341 Spaces Moved 7567 | 56 950 840 275 5446 Core 1 | 1 . . . . Treads 4912 | . 920 500 275 3217 Legs . | . . . . . Wheels 425 | 55 30 340 . . Hover 2229 | . . . . 2229 Flight . | . . . . . Fastest Speed 50 | 50 80 130 240 56 Average Speed 176 | 79 229 200 241 160 Slowest Speed 250 | 80 240 240 250 250 Overloaded Moves . | . . . . . Propulsion Burnouts . | . . . . . Robots Hopped . | . . . . . Potential Cave-ins 5 | . . . . 5 Cave-ins Triggered . | . . . . . Exploration Rate (%) 64 | 5 98 100 23 96 Regions Visited 4 Branch Regions 3 Pre-discovered Areas 4 | . 3 . . 1 Known Exits Taken . | . . . . . Unknown Exits Taken 4 | 1 1 1 1 . Scrap Searched 6 | . . 1 . 5 Spaces Dug 23 | . 12 . . 11 Terrain Destroyed 49 | . 38 . . 11 Melee 9 | . 9 . . . Projectile 3 | . 3 . . . AOE 26 | . 26 . . . Terrain Rammed . | . . . . . Walls Destroyed . | . . . . . Machines Disabled . | . . . . . Actions | -11 -10 -10 -10 -9 --------- Run | Yrd Mat Min Sub Scr Total 8532 | 69 1140 887 375 6061 Wait 488 | . 30 9 52 397 Move 7563 | 55 949 839 274 5446 Hop . | . . . . . Pick Up 112 | 5 19 8 7 73 Fast Attach 19 | 7 4 1 . 7 Attach 21 | . 1 1 7 12 Detach 18 | . 3 . . 15 Swap 46 | . 20 5 5 16 Drop 107 | . 7 10 1 89 Fire 103 | 2 53 13 29 6 Melee 15 | . 15 . . . Ram . | . . . . . Kick . | . . . . . Crush 3 | . 2 1 . . Escape Stasis . | . . . . . Rewire . | . . . . . Trap 37 | . 37 . . . Miscellaneous . | . . . . . Route ------- -11/Scrapyard -10/Materials (discovered 6 exits: *Mat x3 / [*Min x2] / [*Sub]) -10/Mines (discovered 3 exits: *Mat x2 / [*Sub]) -10/Subcaves -9/Scraptown (discovered 2 exits: [*Fac x2]) History --------- Turn | Location | Event 2 | -11/Scrapyard | Met Revision 17 17 | -11/Scrapyard | Discovered new exit (range 15) 66 | -11/Scrapyard | Entered Materials 75 | -10/Materials | Discovered new exit (range 16) 312 | -10/Materials | Build established: Mutant 756 | -10/Materials | Discovered new exit (range 6) 908 | -10/Materials | Discovered new exit (range 16) 1020 | -10/Materials | Discovered new exit (range 7) 1120 | -10/Materials | Discovered new exit (range 5) 1299 | -10/Materials | Repaired Grenade Launcher 1380 | -10/Materials | Central database locked down 1429 | -10/Materials | Discovered new exit (range 9) 1476 | -10/Materials | Learned 4 Subcaves zone layouts 1509 | -10/Materials | Learned location of 2 exits from Materials 1546 | -10/Materials | Learned location of 3 exits from Materials 1549 | -10/Materials | Learned location of Mines (-10) 1563 | -10/Materials | Loaded intel: 18 trap records 1588 | -10/Materials | Learned 4 Subcaves zone layouts 2563 | -10/Materials | Entered Mines 2585 | -10/Mines | Met a Derelict bent on vengeance 2700 | -10/Mines | Learned 2 Materials zone layouts 2768 | -10/Mines | Discovered new exit (range 8) 2826 | -10/Mines | Identified exit to Materials 3083 | -10/Mines | Discovered exit to Materials (range 5) 3908 | -10/Mines | Joined a pair of Derelicts in attacking an 0b10 outpost 4309 | -10/Mines | Entered Subcaves 4310 | -10/Subcaves | Approached by a straggling Scientist 4394 | -10/Subcaves | Core integrity fell below 50% 4930 | -10/Subcaves | Shifting Twisted Machinery released Spk. Treads 4954 | -10/Subcaves | Shifting Twisted Machinery released Sub. Laser 4974 | -10/Subcaves | Learned Materials terminal intel 4984 | -10/Subcaves | Core integrity fell below 20% 5046 | -10/Subcaves | Lost 6 parts (1p1n1u3w) 5130 | -10/Subcaves | Scientist uncovered a shortcut to Scraptown 5136 | -10/Subcaves | Entered Scraptown 5623 | -9/Scraptown | Visited Awakened 5696 | -9/Scraptown | Visited Red Mages 6326 | -9/Scraptown | Heard Great Nut preacher, LISTEN AND RECITE! 6551 | -9/Scraptown | Discovered new exit (range 7) 6723 | -9/Scraptown | Scanned Subdweller tech in exchange for log data 6731 | -9/Scraptown | Learned location of Quarantine (-2) 6733 | -9/Scraptown | Learned Factory non-interactive machine intel 6939 | -9/Scraptown | Visited Shadow of the Wyrm 7011 | -9/Scraptown | Visited Fellowship of the Rings 7105 | -9/Scraptown | Visited Junk Repository 7155 | -9/Scraptown | Visited Cave Peace 7244 | -9/Scraptown | Visited Cyclists 7390 | -9/Scraptown | Visited UFD Registry 7390 | -9/Scraptown | Registered with UFD as "Chainmaster" 7460 | -9/Scraptown | Entered Cyclist Reading Room 7621 | -9/Scraptown | Visited Junk Cannon Lab 7712 | -9/Scraptown | Visited A0-MCA Data Center 7726 | -9/Scraptown | Given a B rating by A0-MCA 7734 | -9/Scraptown | Found A0-MCA's Component Scanner 8037 | -9/Scraptown | Discovered new exit (range 5) 8487 | -9/Scraptown | Visited Research Penetration Think Tank 8527 | -9/Scraptown | Visited Infowarlord's Domain 8578 | -9/Scraptown | Visited Scrap Suit Storage 8662 | -9/Scraptown | Visited Supply Room 8979 | -9/Scraptown | Received an X-ray algorithm 9179 | -9/Scraptown | Visited LU-1G1's Boring Crew 9279 | -9/Scraptown | Visited Scrapoid Research Area 9351 | -9/Scraptown | Visited Curators Association 10903 | -9/Scraptown | Found Prototype Special Weapon 11841 | -9/Scraptown | Found Scrap Suit 12128 | -9/Scraptown | Build established: Scrapper 12581 | -9/Scraptown | Found Relay Coupler [Proto] 12704 | -9/Scraptown | Identified Junk Cannon 12805 | -9/Scraptown | Build established: Mutant 13248 | -9/Scraptown | Ran an X-ray algorithm 13508 | -9/Scraptown | Found Spectral Analyzer 13736 | -9/Scraptown | Found Scrap Suit 13831 | -9/Scraptown | Met Optimus 13831 | -9/Scraptown | Accepted into 0bPrime 14231 | -9/Scraptown | Civil war broke out across Scraptown 14300 | -9/Scraptown | Found Prototype Special Weapon 14300 | -9/Scraptown | Identified LU-1G1's Laser Shovel 14366 | -9/Scraptown | Optimus destroyed in the chaos of civil war 14373 | -9/Scraptown | Lost 7 allies 14383 | -9/Scraptown | Found Prototype Processor 14452 | -9/Scraptown | Lost 9 allies 14477 | -9/Scraptown | Destroyed by JO-LHF(j) with Overtuned Pulse Rifle Last Messages --------------- 14433_ Acquired Imp. Hacking Suite. 14434_ FP-E06(j) cannibalizes Imp. Ion Engine to repair Lgt. Deuterium Engine. 14435_ 8O-4EY(j) cannibalizes Aluminum Leg to repair Ovr. Titanium Leg. 14437_ Acquired Transmission Jammer. 14442_ Acquired A0-MCA's Component Scanner. 14446_ Acquired Weapon Cycler. 14449_ Acquired Adv. Targeting Computer. 14454_ K7-I8B(j) suffers critical hit (Burn). 14454_ QM-4Y5(g) destroyed. 14455_ K7-I8B(j) heat damages Mak. Microdissipator Network. 14458_ XI-HTT(j) destroyed. 14460_ LU-1G1's Laser Shovel disintegrates Wall. 14461_ VG-URW(j) destroyed. 14462_ LU-1G1's Laser Shovel disintegrates Wall. 14467_ LU-1G1's Laser Shovel disintegrates Earth. 14477_ Critical hit (Burn: +50). Map ----- +----------------------------------------------------+ | | | | | | | | | | | | | | | | | | | ?????????????????????????????????????????????????? | | ?????????????????????????????????????????????????? | | ?????????????????????????????????????????????????? | | ?????????????????????????????????????????????????? | | ?????????????????????????????????????????????????? | | ?????????????????????????????????????????????????? | | ?????????????????????????????????????????????????? | | ?????????????????????????????????????????????????? | | ?????????????????????????????????????????????????? | | ?????????????????????????????????????????????????? | | ?????????????????????????????????????????????????? | | ???????????????????????????#####?????????????????? | | ?????????????????????###???#"""#?????????????????? | | ###############???#### #####" "#?????????????????? | | #"""##""|##"""#??##[[%;j ##!